[Event "*** SCC Grand Prix: Titled Tuesday Blitz"]
[Site "Chess.com"]
[Date "2020.10.13"]
[Round "5"]
[White "kleopl"]
[Black "tk22h"]
[Result "1/2-1/2"]
[WhiteElo "2464"]
[BlackElo "2323"]
[TimeControl "180+1"]
[EndTime "10:56:52 PDT"]
[Termination "Game drawn - insufficient material"]

1. c4 {[%clk 0:03:00.9]} 1... e5 {[%clk 0:02:56.8]} 2. Nc3 {[%clk 0:03:00.3]}
2... Nc6 {[%clk 0:02:56.6]} 3. Nf3 {[%clk 0:02:59.2]} 3... f5 {[%clk 0:02:55.8]}
4. g3 {[%clk 0:02:57.3]} 4... Nf6 {[%clk 0:02:55.4]} 5. d4 {[%clk 0:02:55.2]}
5... e4 {[%clk 0:02:54.8]} 6. Nh4 {[%clk 0:02:54.4]} 6... g6 {[%clk 0:02:54.1]}
7. Bg5 {[%clk 0:02:53.6]} 7... Be7 {[%clk 0:02:54.3]} 8. e3 {[%clk 0:02:51.6]}
8... d6 {[%clk 0:02:54.3]} 9. Ng2 {[%clk 0:02:51.3]} 9... O-O {[%clk 0:02:52.9]}
10. h4 {[%clk 0:02:51.2]} 10... Nh5 {[%clk 0:02:50.7]} 11. Bxe7 {[%clk
0:02:48.9]} 11... Qxe7 {[%clk 0:02:51.6]} 12. Be2 {[%clk 0:02:49.1]} 12... Nf6
{[%clk 0:02:50.7]} 13. Nf4 {[%clk 0:02:48.7]} 13... Nd8 {[%clk 0:02:48.9]} 14.
Qb3 {[%clk 0:02:43.7]} 14... c6 {[%clk 0:02:48.1]} 15. O-O-O {[%clk 0:02:42.9]}
15... Ne6 {[%clk 0:02:45.9]} 16. Rdg1 {[%clk 0:02:35.7]} 16... Ng7 {[%clk
0:02:33.6]} 17. Kb1 {[%clk 0:02:26.6]} 17... Rb8 {[%clk 0:02:30.7]} 18. Ka1
{[%clk 0:02:26.3]} 18... a6 {[%clk 0:02:30.4]} 19. Qa3 {[%clk 0:02:25.9]} 19...
Re8 {[%clk 0:02:28.1]} 20. Qb3 {[%clk 0:02:19.5]} 20... Be6 {[%clk 0:02:25.6]}
21. Qa4 {[%clk 0:01:56.7]} 21... Bf7 {[%clk 0:02:25.1]} 22. Qa5 {[%clk
0:01:54.1]} 22... Qd8 {[%clk 0:02:23.8]} 23. Qa3 {[%clk 0:01:45.7]} 23... Qe7
{[%clk 0:02:19.5]} 24. Nh3 {[%clk 0:01:43.3]} 24... c5 {[%clk 0:02:05.9]} 25.
Ng5 {[%clk 0:01:40.4]} 25... cxd4 {[%clk 0:02:03.9]} 26. exd4 {[%clk 0:01:41.3]}
26... d5 {[%clk 0:01:58.1]} 27. Qxe7 {[%clk 0:01:36.6]} 27... Rxe7 {[%clk
0:01:57.3]} 28. Nxf7 {[%clk 0:01:36.7]} 28... Kxf7 {[%clk 0:01:56.7]} 29. cxd5
{[%clk 0:01:36.6]} 29... Rd7 {[%clk 0:01:54.7]} 30. Bc4 {[%clk 0:01:35.6]} 30...
Rc8 {[%clk 0:01:54.3]} 31. Bb3 {[%clk 0:01:35.4]} 31... Nge8 {[%clk 0:01:52.7]}
32. f3 {[%clk 0:01:28.3]} 32... Nd6 {[%clk 0:01:49.6]} 33. fxe4 {[%clk
0:01:26.7]} 33... Nfxe4 {[%clk 0:01:49]} 34. Nxe4 {[%clk 0:01:24.2]} 34... Nxe4
{[%clk 0:01:49]} 35. Rh2 {[%clk 0:01:19]} 35... Kf6 {[%clk 0:01:48.2]} 36. g4
{[%clk 0:01:18.6]} 36... Rdc7 {[%clk 0:01:39.8]} 37. g5+ {[%clk 0:01:09.5]}
37... Kg7 {[%clk 0:01:36.3]} 38. a3 {[%clk 0:01:09.1]} 38... Rc1+ {[%clk
0:01:34.7]} 39. Rxc1 {[%clk 0:01:08.4]} 39... Rxc1+ {[%clk 0:01:35.3]} 40. Ka2
{[%clk 0:01:09.2]} 40... Kf8 {[%clk 0:01:31.2]} 41. h5 {[%clk 0:01:07.9]} 41...
Nxg5 {[%clk 0:01:21.7]} 42. hxg6 {[%clk 0:01:08]} 42... hxg6 {[%clk 0:01:21.4]}
43. Rg2 {[%clk 0:01:08.3]} 43... Nf3 {[%clk 0:01:20.9]} 44. Rxg6 {[%clk
0:01:07.9]} 44... Nxd4 {[%clk 0:01:20.9]} 45. Rb6 {[%clk 0:01:03.4]} 45... Rc5
{[%clk 0:01:08.2]} 46. Rxb7 {[%clk 0:01:00]} 46... Nxb3 {[%clk 0:00:57.7]} 47.
Kxb3 {[%clk 0:01:00.9]} 47... Rxd5 {[%clk 0:00:58]} 48. Kc4 {[%clk 0:01:00.3]}
48... Re5 {[%clk 0:00:56.2]} 49. Kd4 {[%clk 0:00:57.5]} 49... Ra5 {[%clk
0:00:44.1]} 50. Ke3 {[%clk 0:00:50.8]} 50... Ra4 {[%clk 0:00:43.9]} 51. Kd3
{[%clk 0:00:44.3]} 51... f4 {[%clk 0:00:37]} 52. Ke2 {[%clk 0:00:43.9]} 52...
Rc4 {[%clk 0:00:30.2]} 53. Kf3 {[%clk 0:00:43.1]} 53... Ke8 {[%clk 0:00:29.1]}
54. Rb6 {[%clk 0:00:43.1]} 54... a5 {[%clk 0:00:28.1]} 55. Rb5 {[%clk
0:00:40.1]} 55... a4 {[%clk 0:00:28.1]} 56. Re5+ {[%clk 0:00:17]} 56... Kd7
{[%clk 0:00:27.4]} 57. Re4 {[%clk 0:00:17.3]} 57... Rxe4 {[%clk 0:00:23.4]} 58.
Kxe4 {[%clk 0:00:17.8]} 58... Kc6 {[%clk 0:00:23.6]} 59. Kxf4 {[%clk 0:00:18.2]}
59... Kd5 {[%clk 0:00:23.8]} 60. Ke3 {[%clk 0:00:18.5]} 60... Kc4 {[%clk
0:00:24]} 61. Kd2 {[%clk 0:00:19.4]} 61... Kb3 {[%clk 0:00:23.9]} 62. Kc1 {[%clk
0:00:19.8]} 62... Kc4 {[%clk 0:00:23.9]} 63. Kc2 {[%clk 0:00:20]} 63... Kd4
{[%clk 0:00:24.1]} 64. Kd2 {[%clk 0:00:19.3]} 64... Kc4 {[%clk 0:00:24.3]} 65.
Kc2 {[%clk 0:00:19.7]} 65... Kd4 {[%clk 0:00:24.4]} 66. b4 {[%clk 0:00:20.1]}
66... axb3+ {[%clk 0:00:24.2]} 67. Kxb3 {[%clk 0:00:20.6]} 67... Kc5 {[%clk
0:00:24.5]} 68. a4 {[%clk 0:00:20.2]} 68... Kb6 {[%clk 0:00:24.4]} 69. a5+
{[%clk 0:00:20.6]} 69... Kxa5 {[%clk 0:00:24.5]} 1/2-1/2

[Event "*** SCC Grand Prix: Titled Tuesday Blitz"]
[Site "Chess.com"]
[Date "2020.10.13"]
[Round "5"]
[White "ailime26"]
[Black "Sacbutt"]
[Result "0-1"]
[WhiteElo "1875"]
[BlackElo "2298"]
[TimeControl "180+1"]
[EndTime "10:56:57 PDT"]
[Termination "Sacbutt won by checkmate"]

1. e4 {[%clk 0:03:00.9]} 1... c5 {[%clk 0:02:58.4]} 2. Nf3 {[%clk 0:03:00.5]}
2... d6 {[%clk 0:02:58.7]} 3. d4 {[%clk 0:03:01.1]} 3... cxd4 {[%clk 0:02:59.6]}
4. Nxd4 {[%clk 0:03:01.9]} 4... Nf6 {[%clk 0:03:00.1]} 5. Nc3 {[%clk 0:03:02.3]}
5... a6 {[%clk 0:03:00.6]} 6. Be3 {[%clk 0:03:02.7]} 6... e5 {[%clk 0:03:00.6]}
7. Nb3 {[%clk 0:03:00.8]} 7... Be6 {[%clk 0:03:01]} 8. f3 {[%clk 0:03:01]} 8...
Nbd7 {[%clk 0:03:01.4]} 9. Qd2 {[%clk 0:03:01.2]} 9... b5 {[%clk 0:03:01.8]} 10.
O-O-O {[%clk 0:03:00.5]} 10... Nb6 {[%clk 0:03:01.6]} 11. g4 {[%clk 0:02:58.4]}
11... Nc4 {[%clk 0:03:01.4]} 12. Qf2 {[%clk 0:02:51.3]} 12... Be7 {[%clk
0:02:54.2]} 13. h4 {[%clk 0:02:21.3]} 13... Nxe3 {[%clk 0:02:37.3]} 14. Qe2
{[%clk 0:01:31.3]} 14... O-O {[%clk 0:02:38.2]} 15. Qxe3 {[%clk 0:01:31]} 15...
b4 {[%clk 0:02:23.3]} 16. Nd5 {[%clk 0:01:20.4]} 16... Bxd5 {[%clk 0:02:20.9]}
17. exd5 {[%clk 0:00:42.2]} 17... a5 {[%clk 0:02:21.8]} 18. Kb1 {[%clk
0:00:26.6]} 18... a4 {[%clk 0:02:20.5]} 19. Nc1 {[%clk 0:00:25.3]} 19... Qa5
{[%clk 0:02:08.1]} 20. h5 {[%clk 0:00:24.2]} 20... Nxd5 {[%clk 0:02:02.3]} 21.
Qe4 {[%clk 0:00:22.4]} 21... Nf4 {[%clk 0:01:34.6]} 22. h6 {[%clk 0:00:19.5]}
22... g6 {[%clk 0:01:34.6]} 23. Bc4 {[%clk 0:00:17.3]} 23... Rad8 {[%clk
0:01:27.3]} 24. Bd5 {[%clk 0:00:12.9]} 24... Rc8 {[%clk 0:00:59.2]} 25. Rh2
{[%clk 0:00:11.2]} 25... Rc5 {[%clk 0:00:57.5]} 26. Rhd2 {[%clk 0:00:10.1]}
26... Rfc8 {[%clk 0:00:52.6]} 27. Ne2 {[%clk 0:00:05.2]} 27... Nxd5 {[%clk
0:00:42.5]} 28. Rxd5 {[%clk 0:00:04.1]} 28... a3 {[%clk 0:00:38.9]} 29. Rxc5
{[%clk 0:00:03.6]} 29... Qxc5 {[%clk 0:00:37.3]} 30. f4 {[%clk 0:00:03.5]} 30...
axb2 {[%clk 0:00:34]} 31. fxe5 {[%clk 0:00:03.2]} 31... dxe5 {[%clk 0:00:34]}
32. Ng3 {[%clk 0:00:02.4]} 32... Bf8 {[%clk 0:00:28.9]} 33. Re1 {[%clk
0:00:02.6]} 33... Bxh6 {[%clk 0:00:27.9]} 34. Ne2 {[%clk 0:00:02.7]} 34... Bg7
{[%clk 0:00:26.3]} 35. Ng3 {[%clk 0:00:02.8]} 35... Qc3 {[%clk 0:00:24.6]} 36.
g5 {[%clk 0:00:03]} 36... Qc4 {[%clk 0:00:23.4]} 37. Qf3 {[%clk 0:00:02.5]}
37... Qf4 {[%clk 0:00:23]} 38. Qxf4 {[%clk 0:00:02.1]} 38... exf4 {[%clk
0:00:23.9]} 39. Ne4 {[%clk 0:00:02]} 39... h6 {[%clk 0:00:21.9]} 40. gxh6 {[%clk
0:00:01.9]} 40... Bxh6 {[%clk 0:00:22.8]} 41. Rf1 {[%clk 0:00:02]} 41... g5
{[%clk 0:00:22.1]} 42. Nf6+ {[%clk 0:00:02.8]} 42... Kg7 {[%clk 0:00:21.8]} 43.
Ng4 {[%clk 0:00:03.7]} 43... f5 {[%clk 0:00:21.9]} 44. Ne5 {[%clk 0:00:03.7]}
44... g4 {[%clk 0:00:21.1]} 45. Nd3 {[%clk 0:00:02.8]} 45... f3 {[%clk
0:00:20.8]} 46. Kxb2 {[%clk 0:00:03.7]} 46... Re8 {[%clk 0:00:19.6]} 47. Kb3
{[%clk 0:00:04.6]} 47... Re2 {[%clk 0:00:18.7]} 48. Rh1 {[%clk 0:00:05.5]} 48...
g3 {[%clk 0:00:18.6]} 49. Rh3 {[%clk 0:00:05.3]} 49... g2 {[%clk 0:00:18.5]} 50.
Rg3+ {[%clk 0:00:05.1]} 50... Kf8 {[%clk 0:00:18.6]} 51. Kxb4 {[%clk 0:00:02.7]}
51... Be3 {[%clk 0:00:18.8]} 52. a4 {[%clk 0:00:02.5]} 52... g1=Q {[%clk
0:00:19]} 53. Rxg1 {[%clk 0:00:02.7]} 53... Bxg1 {[%clk 0:00:19.9]} 54. a5
{[%clk 0:00:02.6]} 54... f2 {[%clk 0:00:20.4]} 55. a6 {[%clk 0:00:03.5]} 55...
f1=Q {[%clk 0:00:20.3]} 56. a7 {[%clk 0:00:04.4]} 56... Qb1+ {[%clk 0:00:20.4]}
57. Kc4 {[%clk 0:00:04.1]} 57... Qa1 {[%clk 0:00:20.8]} 58. Kd5 {[%clk
0:00:03.9]} 58... Qxa7 {[%clk 0:00:21.1]} 59. c4 {[%clk 0:00:04.8]} 59... Qd7#
{[%clk 0:00:21.5]} 0-1

[Event "*** SCC Grand Prix: Titled Tuesday Blitz"]
[Site "Chess.com"]
[Date "2020.10.13"]
[Round "5"]
[White "As0nchess"]
[Black "eljanov"]
[Result "0-1"]
[WhiteElo "2622"]
[BlackElo "2858"]
[TimeControl "180+1"]
[EndTime "10:56:59 PDT"]
[Termination "eljanov won on time"]

1. e4 {[%clk 0:02:41.1]} 1... e5 {[%clk 0:02:57.3]} 2. Nf3 {[%clk 0:02:41.3]}
2... Nc6 {[%clk 0:02:57.6]} 3. Bc4 {[%clk 0:02:41.6]} 3... Bc5 {[%clk
0:02:57.1]} 4. O-O {[%clk 0:02:41.6]} 4... Nf6 {[%clk 0:02:57.5]} 5. d3 {[%clk
0:02:41.9]} 5... d6 {[%clk 0:02:57.6]} 6. c3 {[%clk 0:02:42]} 6... O-O {[%clk
0:02:56.6]} 7. Re1 {[%clk 0:02:41.4]} 7... h6 {[%clk 0:02:54.6]} 8. h3 {[%clk
0:02:33]} 8... Bb6 {[%clk 0:02:53.3]} 9. Nbd2 {[%clk 0:02:30.4]} 9... Ne7 {[%clk
0:02:52.9]} 10. Bb3 {[%clk 0:02:26.8]} 10... c6 {[%clk 0:02:52.4]} 11. d4 {[%clk
0:02:22.4]} 11... Ng6 {[%clk 0:02:51.8]} 12. Nf1 {[%clk 0:02:20.9]} 12... exd4
{[%clk 0:02:46.1]} 13. Nxd4 {[%clk 0:02:13]} 13... d5 {[%clk 0:02:38.5]} 14.
exd5 {[%clk 0:02:06.4]} 14... Nxd5 {[%clk 0:02:38.5]} 15. Ne3 {[%clk 0:02:03.8]}
15... Ndf4 {[%clk 0:02:36]} 16. Qf3 {[%clk 0:01:46.4]} 16... Bxd4 {[%clk
0:02:19.3]} 17. cxd4 {[%clk 0:01:44.9]} 17... Qxd4 {[%clk 0:02:16.9]} 18. Nc4
{[%clk 0:01:31.2]} 18... Qf6 {[%clk 0:02:07.3]} 19. Qg3 {[%clk 0:01:22.9]} 19...
Be6 {[%clk 0:02:04.1]} 20. Bd2 {[%clk 0:01:15.6]} 20... Rad8 {[%clk 0:01:57.4]}
21. Bc3 {[%clk 0:01:15.1]} 21... Qg5 {[%clk 0:01:57.6]} 22. Qxg5 {[%clk
0:01:14.5]} 22... hxg5 {[%clk 0:01:57.9]} 23. Rad1 {[%clk 0:01:08.7]} 23... Nh4
{[%clk 0:01:45.2]} 24. Ne3 {[%clk 0:01:03.5]} 24... Bxb3 {[%clk 0:01:37.2]} 25.
axb3 {[%clk 0:01:03.5]} 25... Rfe8 {[%clk 0:01:19.1]} 26. Kf1 {[%clk 0:00:57.6]}
26... Ne6 {[%clk 0:00:52.5]} 27. Nc4 {[%clk 0:00:51.7]} 27... Nc5 {[%clk
0:00:48.9]} 28. Rxe8+ {[%clk 0:00:45.6]} 28... Rxe8 {[%clk 0:00:49.1]} 29. b4
{[%clk 0:00:37.9]} 29... Na4 {[%clk 0:00:47.2]} 30. Rd7 {[%clk 0:00:28.4]} 30...
Nb6 {[%clk 0:00:30.4]} 31. Nxb6 {[%clk 0:00:27.4]} 31... axb6 {[%clk 0:00:31.3]}
32. Rxb7 {[%clk 0:00:28]} 32... b5 {[%clk 0:00:31.8]} 33. Rc7 {[%clk 0:00:25.2]}
33... Re6 {[%clk 0:00:32.1]} 34. g3 {[%clk 0:00:19.7]} 34... Nf5 {[%clk
0:00:31.7]} 35. Kg2 {[%clk 0:00:19]} 35... Ne7 {[%clk 0:00:29.4]} 36. Kf3 {[%clk
0:00:15.2]} 36... f6 {[%clk 0:00:29.4]} 37. g4 {[%clk 0:00:13.6]} 37... Nd5
{[%clk 0:00:27.5]} 38. Rd7 {[%clk 0:00:13.3]} 38... Nf4 {[%clk 0:00:26.4]} 39.
h4 {[%clk 0:00:12.2]} 39... Nd5 {[%clk 0:00:16.7]} 40. hxg5 {[%clk 0:00:12.1]}
40... Nxc3 {[%clk 0:00:17.1]} 41. bxc3 {[%clk 0:00:12]} 41... fxg5 {[%clk
0:00:17]} 42. Rc7 {[%clk 0:00:11]} 42... Kh7 {[%clk 0:00:16.9]} 43. Kg3 {[%clk
0:00:10]} 43... Kg6 {[%clk 0:00:17.3]} 44. f3 {[%clk 0:00:10.3]} 44... Kf6
{[%clk 0:00:17.4]} 45. Kf2 {[%clk 0:00:10.2]} 45... g6 {[%clk 0:00:17.6]} 46.
Kg3 {[%clk 0:00:09.8]} 46... Ke5 {[%clk 0:00:17.9]} 47. Kf2 {[%clk 0:00:08.5]}
47... Kd5 {[%clk 0:00:18]} 48. Ra7 {[%clk 0:00:03.6]} 48... Kc4 {[%clk
0:00:18.3]} 49. Ra3 {[%clk 0:00:03.9]} 49... Kd3 {[%clk 0:00:18.5]} 50. Kg3
{[%clk 0:00:03]} 50... Kc2 {[%clk 0:00:19]} 51. Kf2 {[%clk 0:00:02]} 51... Kb2
{[%clk 0:00:19.3]} 52. Ra8 {[%clk 0:00:02]} 52... Kxc3 {[%clk 0:00:19.6]} 53.
Rd8 {[%clk 0:00:02.9]} 53... Kxb4 {[%clk 0:00:19.4]} 54. Rd4+ {[%clk 0:00:02.7]}
54... Kc3 {[%clk 0:00:19.1]} 55. Re4 {[%clk 0:00:03.6]} 55... Rxe4 {[%clk
0:00:18.6]} 56. fxe4 {[%clk 0:00:04.5]} 56... Kd4 {[%clk 0:00:19]} 0-1

[Event "*** SCC Grand Prix: Titled Tuesday Blitz"]
[Site "Chess.com"]
[Date "2020.10.13"]
[Round "5"]
[White "LedakovAlexandr"]
[Black "IngOscarArdila"]
[Result "0-1"]
[WhiteElo "2457"]
[BlackElo "2165"]
[TimeControl "180+1"]
[EndTime "10:57:01 PDT"]
[Termination "IngOscarArdila won by resignation"]

1. d4 {[%clk 0:02:57.6]} 1... Nf6 {[%clk 0:02:59.3]} 2. Nf3 {[%clk 0:02:54.1]}
2... g6 {[%clk 0:02:58.4]} 3. Nc3 {[%clk 0:02:53.2]} 3... d5 {[%clk 0:02:57.9]}
4. Bf4 {[%clk 0:02:53.1]} 4... c6 {[%clk 0:02:56.2]} 5. h3 {[%clk 0:02:53.5]}
5... Bg7 {[%clk 0:02:53.2]} 6. e3 {[%clk 0:02:51.8]} 6... Bf5 {[%clk 0:02:51.5]}
7. g4 {[%clk 0:02:50.6]} 7... Be4 {[%clk 0:02:49.4]} 8. Bg2 {[%clk 0:02:50.5]}
8... Bxf3 {[%clk 0:02:46]} 9. Bxf3 {[%clk 0:02:51.4]} 9... Nbd7 {[%clk
0:02:45.7]} 10. Qd2 {[%clk 0:02:48.3]} 10... b5 {[%clk 0:02:40.4]} 11. O-O-O
{[%clk 0:02:47.4]} 11... a5 {[%clk 0:02:39.8]} 12. g5 {[%clk 0:02:40.9]} 12...
Ng8 {[%clk 0:02:16.4]} 13. e4 {[%clk 0:02:38.4]} 13... b4 {[%clk 0:02:06.2]} 14.
Na4 {[%clk 0:02:22.9]} 14... e6 {[%clk 0:02:05.7]} 15. Bd6 {[%clk 0:02:02.2]}
15... Ne7 {[%clk 0:02:02.7]} 16. Bxe7 {[%clk 0:02:02]} 16... Qxe7 {[%clk
0:02:00]} 17. exd5 {[%clk 0:02:00.6]} 17... cxd5 {[%clk 0:01:58.8]} 18. Bxd5
{[%clk 0:01:41.5]} 18... Rc8 {[%clk 0:01:32.6]} 19. f4 {[%clk 0:01:28.1]} 19...
O-O {[%clk 0:01:31]} 20. Bb3 {[%clk 0:01:26.2]} 20... Rfd8 {[%clk 0:01:23.1]}
21. Qe3 {[%clk 0:01:19.5]} 21... Qd6 {[%clk 0:01:19.1]} 22. Rd2 {[%clk
0:01:01.7]} 22... Nb6 {[%clk 0:01:09.9]} 23. Nxb6 {[%clk 0:01:01.4]} 23... Qxb6
{[%clk 0:01:09.8]} 24. Rhd1 {[%clk 0:01:02.3]} 24... Qa7 {[%clk 0:00:54.2]} 25.
Ba4 {[%clk 0:00:21]} 25... Rd5 {[%clk 0:00:52.9]} 26. Qe4 {[%clk 0:00:11.2]}
26... Rcd8 {[%clk 0:00:50.8]} 27. Bb3 {[%clk 0:00:10.6]} 27... Rxd4 {[%clk
0:00:28.2]} 28. Rxd4 {[%clk 0:00:10.1]} 28... Rxd4 {[%clk 0:00:28.3]} 29. Rxd4
{[%clk 0:00:09.4]} 29... Bxd4 {[%clk 0:00:26.7]} 30. Kb1 {[%clk 0:00:05.1]}
30... Qc5 {[%clk 0:00:16.5]} 31. Qd3 {[%clk 0:00:03.4]} 31... Qb6 {[%clk
0:00:08]} 32. Bc4 {[%clk 0:00:02.9]} 32... Kg7 {[%clk 0:00:06.1]} 33. a3 {[%clk
0:00:03]} 33... bxa3 {[%clk 0:00:04.9]} 34. Qxa3 {[%clk 0:00:03.9]} 34... h6
{[%clk 0:00:03.1]} 35. Ka2 {[%clk 0:00:03.8]} 35... hxg5 {[%clk 0:00:02.2]} 36.
fxg5 {[%clk 0:00:02.5]} 36... a4 {[%clk 0:00:02.6]} 37. h4 {[%clk 0:00:02.4]}
37... Be5 {[%clk 0:00:02.4]} 38. Bd3 {[%clk 0:00:02.6]} 38... Qd4 {[%clk
0:00:01.8]} 39. c3 {[%clk 0:00:02.7]} 39... Qxh4 {[%clk 0:00:01.5]} 40. Qxa4
{[%clk 0:00:03.6]} 40... Qxa4+ {[%clk 0:00:01.2]} 41. Kb1 {[%clk 0:00:03.8]}
41... Qd1+ {[%clk 0:00:01.6]} 42. Ka2 {[%clk 0:00:04.1]} 42... Qxd3 {[%clk
0:00:02]} 43. Ka3 {[%clk 0:00:05]} 43... Qc4 {[%clk 0:00:02.4]} 44. b3 {[%clk
0:00:05.9]} 44... Qg4 {[%clk 0:00:03.2]} 45. b4 {[%clk 0:00:05.5]} 45... Qxg5
{[%clk 0:00:04.1]} 46. Ka4 {[%clk 0:00:06.4]} 46... Qf6 {[%clk 0:00:04.7]} 47.
c4 {[%clk 0:00:07.3]} 47... Bc3 {[%clk 0:00:05.6]} 48. b5 {[%clk 0:00:08.2]}
48... Bd4 {[%clk 0:00:05.9]} 49. Kb4 {[%clk 0:00:08.2]} 49... Bc5+ {[%clk
0:00:06.1]} 50. Kxc5 {[%clk 0:00:08.4]} 50... Qe7+ {[%clk 0:00:06.6]} 51. Kb6
{[%clk 0:00:08.5]} 51... e5 {[%clk 0:00:06.8]} 52. c5 {[%clk 0:00:08.7]} 52...
e4 {[%clk 0:00:07.7]} 53. c6 {[%clk 0:00:09.6]} 53... e3 {[%clk 0:00:08.3]} 54.
c7 {[%clk 0:00:10.5]} 54... Qd6+ {[%clk 0:00:08.1]} 55. Kb7 {[%clk 0:00:10.7]}
55... Qd5+ {[%clk 0:00:07.9]} 56. Kb8 {[%clk 0:00:10.6]} 56... Qxb5+ {[%clk
0:00:07.7]} 57. Kc8 {[%clk 0:00:11.5]} 57... e2 {[%clk 0:00:07]} 58. Kd8 {[%clk
0:00:11.9]} 58... Qb6 {[%clk 0:00:06.9]} 59. Kd7 {[%clk 0:00:10.9]} 59... Qxc7+
{[%clk 0:00:06.8]} 60. Kxc7 {[%clk 0:00:11]} 60... e1=Q {[%clk 0:00:07.4]} 0-1

[Event "*** SCC Grand Prix: Titled Tuesday Blitz"]
[Site "Chess.com"]
[Date "2020.10.13"]
[Round "5"]
[White "anon102030"]
[Black "AlexSuv"]
[Result "1-0"]
[WhiteElo "2734"]
[BlackElo "2533"]
[TimeControl "180+1"]
[EndTime "10:57:05 PDT"]
[Termination "anon102030 won by checkmate"]

1. e4 {[%clk 0:03:00.9]} 1... c5 {[%clk 0:02:47]} 2. Nc3 {[%clk 0:02:59.6]} 2...
e6 {[%clk 0:02:41.5]} 3. g3 {[%clk 0:02:59.4]} 3... Nc6 {[%clk 0:02:41.2]} 4.
Bg2 {[%clk 0:02:56.9]} 4... g6 {[%clk 0:02:41.5]} 5. d3 {[%clk 0:02:57.3]} 5...
Bg7 {[%clk 0:02:41.3]} 6. Be3 {[%clk 0:02:55.9]} 6... d6 {[%clk 0:02:41.5]} 7.
Nf3 {[%clk 0:02:51.8]} 7... Nd4 {[%clk 0:02:38.6]} 8. O-O {[%clk 0:02:50.7]}
8... Ne7 {[%clk 0:02:37.1]} 9. Nh4 {[%clk 0:02:49.3]} 9... O-O {[%clk
0:02:34.6]} 10. Qd2 {[%clk 0:02:47.5]} 10... Rb8 {[%clk 0:02:32.4]} 11. f4
{[%clk 0:02:43.9]} 11... f5 {[%clk 0:02:31.8]} 12. Rae1 {[%clk 0:02:41.9]} 12...
b5 {[%clk 0:02:28.7]} 13. Nd1 {[%clk 0:02:40.1]} 13... b4 {[%clk 0:02:24.2]} 14.
c3 {[%clk 0:02:24.1]} 14... bxc3 {[%clk 0:02:22.3]} 15. bxc3 {[%clk 0:02:25]}
15... Nb5 {[%clk 0:02:22.6]} 16. Nf3 {[%clk 0:02:17.3]} 16... Qc7 {[%clk
0:02:09.3]} 17. a4 {[%clk 0:02:10.5]} 17... Na3 {[%clk 0:02:05.1]} 18. Qa2
{[%clk 0:02:08.7]} 18... Nb1 {[%clk 0:02:00]} 19. Ng5 {[%clk 0:01:35.6]} 19...
c4 {[%clk 0:01:22.9]} 20. exf5 {[%clk 0:01:33.4]} 20... Nxf5 {[%clk 0:01:15.2]}
21. Bf2 {[%clk 0:01:23.7]} 21... cxd3 {[%clk 0:01:09.6]} 22. Nxe6 {[%clk
0:01:23.5]} 22... Bxe6 {[%clk 0:01:09.6]} 23. Rxe6 {[%clk 0:01:21.5]} 23... Kh8
{[%clk 0:01:10.1]} 24. Qd5 {[%clk 0:01:12.1]} 24... d2 {[%clk 0:00:54.4]} 25. g4
{[%clk 0:01:05.5]} 25... Ne7 {[%clk 0:00:54.6]} 26. Qxd6 {[%clk 0:00:59.1]}
26... Qxd6 {[%clk 0:00:53.9]} 27. Rxd6 {[%clk 0:01:00]} 27... Rxf4 {[%clk
0:00:54]} 28. Bxa7 {[%clk 0:00:49.5]} 28... Rxf1+ {[%clk 0:00:54.1]} 29. Bxf1
{[%clk 0:00:48.8]} 29... Ra8 {[%clk 0:00:49.5]} 30. Bc5 {[%clk 0:00:46.3]} 30...
Ng8 {[%clk 0:00:45.5]} 31. Bb5 {[%clk 0:00:41.5]} 31... Nf6 {[%clk 0:00:23.8]}
32. Be3 {[%clk 0:00:29.1]} 32... Nxg4 {[%clk 0:00:22.4]} 33. Bxd2 {[%clk
0:00:27]} 33... Be5 {[%clk 0:00:18.5]} 34. Rd7 {[%clk 0:00:22.8]} 34... Bxh2+
{[%clk 0:00:16.8]} 35. Kg2 {[%clk 0:00:23]} 35... Be5 {[%clk 0:00:17.3]} 36. Be1
{[%clk 0:00:15.1]} 36... Rf8 {[%clk 0:00:16.4]} 37. a5 {[%clk 0:00:12.7]} 37...
Na3 {[%clk 0:00:16.7]} 38. Bd3 {[%clk 0:00:11.5]} 38... Nf6 {[%clk 0:00:17.3]}
39. Rb7 {[%clk 0:00:10]} 39... Rd8 {[%clk 0:00:17]} 40. Nf2 {[%clk 0:00:10.4]}
40... Nh5 {[%clk 0:00:14.3]} 41. Bd2 {[%clk 0:00:08.6]} 41... Bf4 {[%clk
0:00:14.3]} 42. Be1 {[%clk 0:00:08.2]} 42... Be3 {[%clk 0:00:14.6]} 43. Be2
{[%clk 0:00:07.9]} 43... Nf4+ {[%clk 0:00:15]} 44. Kf3 {[%clk 0:00:07.8]} 44...
Bxf2 {[%clk 0:00:15.3]} 45. Bxf2 {[%clk 0:00:07.8]} 45... g5 {[%clk 0:00:12.7]}
46. Bd4+ {[%clk 0:00:07.2]} 46... Kg8 {[%clk 0:00:12.9]} 47. a6 {[%clk
0:00:08.1]} 47... Nc2 {[%clk 0:00:11.5]} 48. Bc4+ {[%clk 0:00:07.6]} 48... Kf8
{[%clk 0:00:11.1]} 49. Bc5+ {[%clk 0:00:03.9]} 49... Ke8 {[%clk 0:00:11.6]} 50.
Bb5+ {[%clk 0:00:04.8]} 50... Rd7 {[%clk 0:00:10.6]} 51. Bxd7+ {[%clk
0:00:05.4]} 51... Kd8 {[%clk 0:00:09.9]} 52. Ba4 {[%clk 0:00:06.3]} 52... Ne1+
{[%clk 0:00:08.7]} 53. Ke4 {[%clk 0:00:06.8]} 53... Ned3 {[%clk 0:00:09.6]} 54.
Bb6+ {[%clk 0:00:06.2]} 54... Kc8 {[%clk 0:00:10.5]} 55. Bc6 {[%clk 0:00:06.5]}
55... Nf2+ {[%clk 0:00:08.6]} 56. Kf5 {[%clk 0:00:06.7]} 56... Ne6 {[%clk
0:00:08.5]} 57. a7 {[%clk 0:00:05.9]} 57... Ng7+ {[%clk 0:00:07.1]} 58. Ke5
{[%clk 0:00:05.9]} 58... Ne4 {[%clk 0:00:08]} 59. a8=Q# {[%clk 0:00:05.3]} 1-0